[Event "Elitserien 2019/2020, round 1-3"]
[Site "Uppsala University, Gamla torget, Uppsala, Sweden"]
[Date "2019.10.19"]
[Round "2.31"]
[White "Namini, Armin"]
[Black "Jogstad, Martin"]
[Result "1/2-1/2"]
[TimeControl "90 minutes for 40 moves + 30 minutes for the rest of the game + 30 seconds per move from move one."]
[BlackTitle "FM"]
[WhiteFideId "1706322"]
[BlackFideId "1715364"]
[WhiteElo "2251"]
[BlackElo "2322"]

1. c4 {[%clk 01:30:53]} {[%emt 00:00:05]} c6 {[%clk 01:30:41]} {[%emt
00:00:08]} 2. g3 {[%clk 01:29:07]} {[%emt 00:02:30]} d5 {[%clk 01:31:03]}
{[%emt 00:00:07]} 3. Nf3 {[%clk 01:29:32]} {[%emt 00:00:06]} Nf6 {[%clk
01:31:18]} {[%emt 00:00:16]} 4. Bg2 {[%clk 01:29:53]} {[%emt 00:00:09]} Bf5
{[%clk 01:31:15]} {[%emt 00:00:32]} 5. O-O {[%clk 01:29:54]} {[%emt 00:00:29]}
e6 {[%clk 01:31:36]} {[%emt 00:00:08]} 6. d3 {[%clk 01:30:02]} {[%emt
00:00:22]} dxc4 {[%clk 01:27:19]} {[%emt 00:04:48]} 7. dxc4 {[%clk 01:30:12]}
{[%emt 00:00:21]} Qxd1 {[%clk 01:26:03]} {[%emt 00:01:44]} 8. Rxd1 {[%clk
01:30:10]} {[%emt 00:00:33]} Nbd7 {[%clk 01:17:07]} {[%emt 00:09:26]} 9. Nc3
{[%clk 01:27:07]} {[%emt 00:03:33]} h6 {[%clk 01:12:33]} {[%emt 00:05:03]} 10.
Bf4 {[%clk 01:15:46]} {[%emt 00:11:52]} Bc5 {[%clk 01:03:16]} {[%emt 00:09:45]}
11. h3 {[%clk 01:07:30]} {[%emt 00:08:46]} g5 {[%clk 00:46:51]} {[%emt
00:16:55]} 12. Bd2 {[%clk 01:01:38]} {[%emt 00:06:23]} a5 {[%clk 00:38:40]}
{[%emt 00:08:42]} 13. h4 {[%clk 00:39:46]} {[%emt 00:22:21]} Ng4 {[%clk
00:33:51]} {[%emt 00:05:18]} 14. Be1 {[%clk 00:33:41]} {[%emt 00:06:37]} Nge5
{[%clk 00:29:53]} {[%emt 00:04:27]} 15. hxg5 {[%clk 00:30:30]} {[%emt
00:03:41]} Nxf3+ {[%clk 00:24:35]} {[%emt 00:05:48]} 16. Bxf3 {[%clk 00:22:04]}
{[%emt 00:08:56]} hxg5 {[%clk 00:24:49]} {[%emt 00:00:17]} 17. Na4 {[%clk
00:17:11]} {[%emt 00:05:24]} Bb4 {[%clk 00:23:08]} {[%emt 00:02:09]} 18. b3
{[%clk 00:15:25]} {[%emt 00:02:17]} Bxe1 {[%clk 00:16:52]} {[%emt 00:06:46]} 19.
Rxe1 {[%clk 00:15:40]} {[%emt 00:00:15]} Ke7 {[%clk 00:16:59]} {[%emt
00:00:22]} 20. Bg2 {[%clk 00:12:13]} {[%emt 00:03:57]} Bh3 {[%clk 00:13:51]}
{[%emt 00:03:37]} 21. Rad1 {[%clk 00:10:04]} {[%emt 00:02:39]} Rad8 {[%clk
00:09:30]} {[%emt 00:04:51]} 22. Bh1 {[%clk 00:07:17]} {[%emt 00:03:18]} e5
{[%clk 00:05:09]} {[%emt 00:04:50]} 23. Rd2 {[%clk 00:06:04]} {[%emt 00:01:43]}
Be6 {[%clk 00:04:49]} {[%emt 00:00:50]} 24. Red1 {[%clk 00:05:29]} {[%emt
00:01:06]} f5 {[%clk 00:04:58]} {[%emt 00:00:21]} 25. Bg2 {[%clk 00:04:33]}
{[%emt 00:01:26]} g4 {[%clk 00:04:29]} {[%emt 00:00:59]} 26. f3 {[%clk
00:01:38]} {[%emt 00:03:26]} Rdg8 {[%clk 00:03:58]} {[%emt 00:01:00]} 27. Kf2
{[%clk 00:02:04]} {[%emt 00:00:04]} f4 {[%clk 00:02:28]} {[%emt 00:01:59]} 28.
gxf4 {[%clk 00:02:33]} {[%emt 00:00:01]} gxf3 {[%clk 00:02:33]} {[%emt
00:00:25]} 29. Bxf3 {[%clk 00:01:49]} {[%emt 00:01:15]} exf4 {[%clk 00:00:55]}
{[%emt 00:02:09]} 30. Rh1 {[%clk 00:02:18]} Rxh1 {[%clk 00:00:42]} {[%emt
00:00:43]} 31. Bxh1 {[%clk 00:02:46]} Rg3 {[%clk 00:00:37]} {[%emt 00:00:35]}
32. Rd4 {[%clk 00:02:09]} {[%emt 00:01:08]} Rh3 {[%clk 00:00:56]} {[%emt
00:00:11]} 33. Bg2 {[%clk 00:01:54]} {[%emt 00:00:45]} Rh4 {[%clk 00:01:24]}
{[%emt 00:00:01]} 34. Rd1 {[%clk 00:01:16]} {[%emt 00:01:08]} Kf6 {[%clk
00:01:11]} {[%emt 00:00:43]} 35. Rh1 {[%clk 00:01:17]} {[%emt 00:00:30]} Rxh1
{[%clk 00:01:40]} {[%emt 00:00:02]} 36. Bxh1 {[%clk 00:01:44]} {[%emt
00:00:03]} Ke5 {[%clk 00:01:54]} {[%emt 00:00:15]} 37. e3 {[%clk 00:02:05]}
{[%emt 00:00:10]} Bf5 {[%clk 00:01:21]} {[%emt 00:01:02]} 38. exf4+ {[%clk
00:00:51]} {[%emt 00:01:45]} Kxf4 {[%clk 00:01:46]} {[%emt 00:00:04]} 39. Bg2
{[%clk 00:00:55]} {[%emt 00:00:26]} Bb1 {[%clk 00:00:35]} {[%emt 00:01:41]} 40.
Nc3 {[%clk 00:01:24]} {[%emt 00:00:02]} Bd3 {[%clk 00:00:51]} {[%emt 00:00:14]}
41. Na4 {[%clk 00:18:24]} {[%emt 00:13:31]} Bb1 {[%clk 00:27:24]} {[%emt
00:03:56]} 42. Nc3 {[%clk 00:18:31]} {[%emt 00:00:23]} Bd3 {[%clk 00:25:03]}
{[%emt 00:02:50]} 43. Na4 {[%clk 00:18:52]} {[%emt 00:00:10]} Bf5 {[%clk
00:24:28]} {[%emt 00:01:04]} 44. Nc3 {[%clk 00:14:04]} {[%emt 00:05:19]} Nc5
{[%clk 00:19:03]} {[%emt 00:05:54]} 45. Ne2+ {[%clk 00:13:34]} {[%emt
00:01:02]} Ke5 {[%clk 00:18:11]} {[%emt 00:01:19]} 46. Ke3 {[%clk 00:13:34]}
{[%emt 00:00:32]} Nd3 {[%clk 00:11:45]} {[%emt 00:06:55]} 47. Nd4 {[%clk
00:10:21]} {[%emt 00:03:44]} Nb4 {[%clk 00:11:06]} {[%emt 00:01:09]} 48. a3
{[%clk 00:09:43]} {[%emt 00:01:08]} Nc2+ {[%clk 00:11:04]} {[%emt 00:00:31]} 49.
Nxc2 {[%clk 00:10:09]} {[%emt 00:00:05]} Bxc2 {[%clk 00:11:27]} {[%emt
00:00:07]} 50. b4 {[%clk 00:10:33]} {[%emt 00:00:07]} axb4 {[%clk 00:10:52]}
{[%emt 00:01:05]} 51. axb4 {[%clk 00:11:00]} {[%emt 00:00:03]} Bf5 {[%clk
00:11:08]} {[%emt 00:00:13]} 52. Bf3 {[%clk 00:09:10]} {[%emt 00:02:21]} Bh3
{[%clk 00:11:35]} {[%emt 00:00:02]} 53. Be2 {[%clk 00:09:02]} {[%emt 00:00:38]}
Bg2 {[%clk 00:12:00]} {[%emt 00:00:05]} 54. Bd3 {[%clk 00:09:14]} {[%emt
00:00:18]} b6 {[%clk 00:12:09]} {[%emt 00:00:21]} 55. Be2 {[%clk 00:09:17]}
{[%emt 00:00:28]} Be4 {[%clk 00:12:21]} {[%emt 00:00:17]} 56. Bf1 {[%clk
00:09:24]} {[%emt 00:00:24]} c5 {[%clk 00:11:53]} {[%emt 00:00:58]} 57. bxc5
{[%clk 00:09:40]} {[%emt 00:00:15]} bxc5 {[%clk 00:12:21]} {[%emt 00:00:02]} 58.
Be2 {[%clk 00:09:46]} {[%emt 00:00:22]} Bg6 {[%clk 00:12:41]} {[%emt 00:00:10]}
59. Bf1 {[%clk 00:10:07]} {[%emt 00:00:08]} Bf7 {[%clk 00:13:03]} {[%emt
00:00:09]} 1/2-1/2

[Event "Elitserien 2019/2020, round 1-3"]
[Site "Uppsala University, Gamla torget, Uppsala, Sweden"]
[Date "2019.10.19"]
[Round "2.32"]
[White "Lundberg, David"]
[Black "Jaderberg, Bjorn"]
[Result "1-0"]
[TimeControl "90 minutes for 40 moves + 30 minutes for the rest of the game + 30 seconds per move from move one."]
[WhiteFideId "1707051"]
[BlackFideId "1712403"]
[WhiteElo "2205"]
[BlackElo "2154"]

1. e4 {[%clk 01:29:55]} {[%emt 00:01:04]} d6 {[%clk 01:30:47]} {[%emt
00:00:14]} 2. d4 {[%clk 01:29:13]} {[%emt 00:01:11]} Nf6 {[%clk 01:31:07]}
{[%emt 00:00:10]} 3. Nc3 {[%clk 01:29:22]} {[%emt 00:00:21]} e5 {[%clk
01:31:27]} {[%emt 00:00:11]} 4. Nge2 {[%clk 01:28:02]} {[%emt 00:01:49]} exd4
{[%clk 01:31:28]} {[%emt 00:00:30]} 5. Nxd4 {[%clk 01:27:20]} {[%emt 00:01:12]}
Be7 {[%clk 01:31:47]} {[%emt 00:00:11]} 6. f3 {[%clk 01:22:43]} {[%emt
00:05:06]} O-O {[%clk 01:31:09]} {[%emt 00:01:08]} 7. Bf4 {[%clk 01:13:52]}
{[%emt 00:09:20]} Nh5 {[%clk 01:24:48]} {[%emt 00:06:52]} 8. Be3 {[%clk
01:11:44]} {[%emt 00:02:38]} Bg5 {[%clk 01:23:00]} {[%emt 00:02:17]} 9. Qd2
{[%clk 01:08:12]} {[%emt 00:04:02]} Bxe3 {[%clk 01:20:01]} {[%emt 00:03:30]} 10.
Qxe3 {[%clk 01:08:15]} {[%emt 00:00:27]} Nc6 {[%clk 01:19:29]} {[%emt
00:01:01]} 11. O-O-O {[%clk 01:04:37]} {[%emt 00:04:08]} Nxd4 {[%clk 01:14:52]}
{[%emt 00:05:07]} 12. Qxd4 {[%clk 01:00:21]} {[%emt 00:04:46]} Qg5+ {[%clk
01:14:30]} {[%emt 00:00:52]} 13. Kb1 {[%clk 00:58:53]} {[%emt 00:01:58]} Be6
{[%clk 01:14:12]} {[%emt 00:00:48]} 14. g3 {[%clk 00:54:28]} {[%emt 00:04:54]}
Qa5 {[%clk 01:11:16]} {[%emt 00:03:26]} 15. Be2 {[%clk 00:50:15]} {[%emt
00:04:44]} b5 {[%clk 01:05:02]} {[%emt 00:06:45]} 16. f4 {[%clk 00:45:08]}
{[%emt 00:05:37]} Nf6 {[%clk 00:54:31]} {[%emt 00:11:01]} 17. g4 {[%clk
00:35:46]} {[%emt 00:09:51]} c5 {[%clk 00:48:12]} {[%emt 00:06:49]} 18. Qd3
{[%clk 00:22:15]} {[%emt 00:14:01]} b4 {[%clk 00:39:56]} {[%emt 00:08:46]} 19.
Nd5 {[%clk 00:20:36]} {[%emt 00:02:09]} Bxd5 {[%clk 00:36:59]} {[%emt
00:03:27]} 20. exd5 {[%clk 00:21:04]} {[%emt 00:00:02]} Rfc8 {[%clk 00:37:04]}
{[%emt 00:00:23]} 21. Qc4 {[%clk 00:16:38]} {[%emt 00:04:58]} Nd7 {[%clk
00:37:03]} {[%emt 00:00:31]} 22. Rhe1 {[%clk 00:15:21]} {[%emt 00:01:48]} Re8
{[%clk 00:35:05]} {[%emt 00:02:28]} 23. g5 {[%clk 00:12:10]} {[%emt 00:03:42]}
a6 {[%clk 00:34:28]} {[%emt 00:01:07]} 24. Qb3 {[%clk 00:09:24]} {[%emt
00:03:15]} Nb6 {[%clk 00:33:30]} {[%emt 00:01:28]} 25. f5 {[%clk 00:03:53]}
{[%emt 00:06:02]} Re5 {[%clk 00:33:02]} {[%emt 00:00:57]} 26. f6 {[%clk
00:03:51]} {[%emt 00:00:32]} Rae8 {[%clk 00:30:58]} {[%emt 00:02:34]} 27. Qf3
{[%clk 00:02:41]} {[%emt 00:01:40]} c4 {[%clk 00:29:59]} {[%emt 00:01:30]} 28.
fxg7 {[%clk 00:01:41]} {[%emt 00:01:29]} Re3 {[%clk 00:29:37]} {[%emt
00:00:52]} 29. Qf2 {[%clk 00:00:58]} {[%emt 00:01:14]} c3 {[%clk 00:29:16]}
{[%emt 00:00:50]} 30. Bh5 {[%clk 00:01:04]} {[%emt 00:00:24]} 1-0

[Event "Elitserien 2019/2020, round 1-3"]
[Site "Uppsala University, Gamla torget, Uppsala, Sweden"]
[Date "2019.10.20"]
[Round "3.1"]
[White "Hillarp Persson, Tiger"]
[Black "Haitin, Ilja"]
[Result "1/2-1/2"]
[TimeControl "90 minutes for 40 moves + 30 minutes for the rest of the game + 30 seconds per move from move one."]
[WhiteTitle "GM"]
[BlackTitle "FM"]
[BlackFideId "4501764"]
[WhiteElo "2558"]
[BlackElo "2324"]

1. c4 {[%clk 01:27:08]} {[%emt 00:03:52]} e6 {[%clk 01:30:42]} {[%emt
00:00:18]} 2. Nc3 {[%clk 01:26:47]} {[%emt 00:00:50]} d5 {[%clk 01:31:09]}
{[%emt 00:00:05]} 3. d4 {[%clk 01:27:07]} {[%emt 00:00:09]} a6 {[%clk
01:31:36]} {[%emt 00:00:03]} 4. cxd5 {[%clk 01:26:47]} {[%emt 00:00:51]} exd5
{[%clk 01:32:01]} {[%emt 00:00:05]} 5. Bf4 {[%clk 01:25:57]} {[%emt 00:01:19]}
Nf6 {[%clk 01:32:09]} {[%emt 00:00:22]} 6. e3 {[%clk 01:26:12]} {[%emt
00:00:14]} Bd6 {[%clk 01:32:22]} {[%emt 00:00:18]} 7. Bg5 {[%clk 01:22:15]}
{[%emt 00:04:26]} c6 {[%clk 01:28:08]} {[%emt 00:04:45]} 8. Bd3 {[%clk
01:22:35]} {[%emt 00:00:10]} Be6 {[%clk 01:06:31]} {[%emt 00:22:07]} 9. Nge2
{[%clk 01:10:07]} {[%emt 00:12:58]} Nbd7 {[%clk 00:59:43]} {[%emt 00:07:19]} 10.
Qd2 {[%clk 00:49:57]} {[%emt 00:20:39]} Qc7 {[%clk 00:48:33]} {[%emt 00:13:25]}
11. Bf4 {[%clk 00:49:00]} {[%emt 00:01:27]} Nh5 {[%clk 00:44:42]} {[%emt
00:04:22]} 12. Bxd6 {[%clk 00:48:29]} {[%emt 00:01:01]} Qxd6 {[%clk 00:45:09]}
{[%emt 00:00:03]} 13. f3 {[%clk 00:46:52]} {[%emt 00:02:06]} c5 {[%clk
00:44:37]} {[%emt 00:01:02]} 14. dxc5 {[%clk 00:44:58]} {[%emt 00:02:24]} Qxc5
{[%clk 00:40:38]} {[%emt 00:04:29]} 15. Nd4 {[%clk 00:35:18]} {[%emt 00:10:09]}
Nhf6 {[%clk 00:37:32]} {[%emt 00:03:36]} 16. Rc1 {[%clk 00:34:05]} {[%emt
00:01:42]} Qb6 {[%clk 00:37:12]} {[%emt 00:00:52]} 17. Nce2 {[%clk 00:29:00]}
{[%emt 00:05:35]} O-O {[%clk 00:35:39]} {[%emt 00:02:03]} 18. Nf4 {[%clk
00:26:04]} {[%emt 00:03:26]} Ne5 {[%clk 00:33:10]} {[%emt 00:02:58]} 19. O-O
{[%clk 00:24:04]} {[%emt 00:02:31]} Rac8 {[%clk 00:28:27]} {[%emt 00:05:13]} 20.
b3 {[%clk 00:19:23]} {[%emt 00:05:11]} a5 {[%clk 00:16:31]} {[%emt 00:12:27]}
21. h4 {[%clk 00:11:17]} {[%emt 00:08:36]} Bd7 {[%clk 00:14:47]} {[%emt
00:02:13]} 22. Rxc8 {[%clk 00:09:45]} {[%emt 00:02:01]} Rxc8 {[%clk 00:14:56]}
{[%emt 00:00:21]} 23. Rc1 {[%clk 00:07:47]} {[%emt 00:02:27]} Rc5 {[%clk
00:13:01]} {[%emt 00:02:26]} 24. Rxc5 {[%clk 00:03:36]} {[%emt 00:04:42]} Qxc5
{[%clk 00:13:28]} {[%emt 00:00:03]} 25. Kf2 {[%clk 00:03:24]} {[%emt 00:00:41]}
Nc6 {[%clk 00:09:02]} {[%emt 00:04:57]} 26. Be2 {[%clk 00:01:40]} {[%emt
00:02:13]} Nxd4 {[%clk 00:07:07]} {[%emt 00:02:26]} 27. exd4 {[%clk 00:02:02]}
{[%emt 00:00:07]} Qd6 {[%clk 00:06:05]} {[%emt 00:01:32]} 28. g3 {[%clk
00:01:23]} {[%emt 00:01:09]} b6 {[%clk 00:05:39]} {[%emt 00:00:55]} 29. Qe3
{[%clk 00:01:03]} {[%emt 00:00:50]} Be6 {[%clk 00:02:31]} {[%emt 00:03:38]} 30.
Qe5 {[%clk 00:00:41]} {[%emt 00:00:52]} Qxe5 {[%clk 00:01:15]} {[%emt
00:01:47]} 31. dxe5 {[%clk 00:01:03]} {[%emt 00:00:07]} Nd7 {[%clk 00:01:43]}
{[%emt 00:00:02]} 32. Nxe6 {[%clk 00:00:34]} {[%emt 00:01:00]} fxe6 {[%clk
00:02:12]} 33. f4 {[%clk 00:00:52]} {[%emt 00:00:12]} Nc5 {[%clk 00:02:00]}
{[%emt 00:00:42]} 34. Ke3 {[%clk 00:01:00]} {[%emt 00:00:21]} Ne4 {[%clk
00:01:19]} {[%emt 00:01:10]} 35. g4 {[%clk 00:01:23]} {[%emt 00:00:07]} Nc3
{[%clk 00:00:56]} {[%emt 00:00:53]} 36. a3 {[%clk 00:01:32]} {[%emt 00:00:21]}
Nxe2 {[%clk 00:00:36]} {[%emt 00:00:51]} 37. Kxe2 {[%clk 00:01:55]} {[%emt
00:00:07]} g6 {[%clk 00:00:32]} {[%emt 00:00:34]} 38. Kd3 {[%clk 00:01:40]}
{[%emt 00:00:45]} Kf7 {[%clk 00:00:31]} {[%emt 00:00:31]} 39. Kd4 {[%clk
00:01:07]} {[%emt 00:01:02]} Ke7 {[%clk 00:00:32]} {[%emt 00:00:30]} 40. Kc3
{[%clk 00:00:39]} {[%emt 00:00:58]} Kf7 {[%clk 00:00:35]} {[%emt 00:00:28]} 41.
b4 {[%clk 00:00:38]} {[%emt 00:00:31]} axb4+ {[%clk 00:29:30]} {[%emt
00:01:34]} 42. axb4 {[%clk 00:25:41]} {[%emt 00:05:26]} h5 {[%clk 00:27:34]}
{[%emt 00:02:27]} 43. g5 {[%clk 00:25:36]} {[%emt 00:00:36]} Ke7 {[%clk
00:26:05]} {[%emt 00:01:59]} 44. Kd3 {[%clk 00:24:56]} {[%emt 00:01:09]} Kf7
{[%clk 00:24:06]} {[%emt 00:02:30]} 1/2-1/2

[Event "Elitserien 2019/2020, round 1-3"]
[Site "Uppsala University, Gamla torget, Uppsala, Sweden"]
[Date "2019.10.20"]
[Round "3.2"]
[White "Krupenski, Juri"]
[Black "Smith, Axel"]
[Result "0-1"]
[TimeControl "90 minutes for 40 moves + 30 minutes for the rest of the game + 30 seconds per move from move one."]
[WhiteTitle "IM"]
[BlackTitle "GM"]
[WhiteFideId "4501101"]
[BlackFideId "1707930"]
[WhiteElo "2399"]
[BlackElo "2461"]

1. d4 {[%clk 01:30:51]} {[%emt 00:00:08]} Nf6 {[%clk 01:29:51]} {[%emt
00:01:10]} 2. c4 {[%clk 01:30:59]} {[%emt 00:00:22]} c5 {[%clk 01:30:12]}
{[%emt 00:00:10]} 3. d5 {[%clk 01:31:07]} {[%emt 00:00:22]} b5 {[%clk
01:30:39]} {[%emt 00:00:02]} 4. Nf3 {[%clk 01:30:35]} {[%emt 00:01:02]} Bb7
{[%clk 01:30:47]} {[%emt 00:00:23]} 5. Qc2 {[%clk 01:29:22]} {[%emt 00:01:43]}
bxc4 {[%clk 01:30:46]} {[%emt 00:00:31]} 6. e4 {[%clk 01:29:06]} {[%emt
00:00:46]} e6 {[%clk 01:31:11]} {[%emt 00:00:04]} 7. Nc3 {[%clk 01:22:35]}
{[%emt 00:07:01]} exd5 {[%clk 01:28:45]} {[%emt 00:02:56]} 8. e5 {[%clk
01:21:46]} {[%emt 00:01:19]} Ng8 {[%clk 01:18:11]} {[%emt 00:11:04]} 9. Bg5
{[%clk 01:11:39]} {[%emt 00:10:37]} Be7 {[%clk 01:16:24]} {[%emt 00:02:16]} 10.
h4 {[%clk 01:03:29]} {[%emt 00:08:42]} f6 {[%clk 01:05:36]} {[%emt 00:11:18]}
11. exf6 {[%clk 00:43:10]} {[%emt 00:20:49]} Nxf6 {[%clk 01:05:44]} {[%emt
00:00:21]} 12. O-O-O {[%clk 00:43:19]} {[%emt 00:00:21]} d4 {[%clk 01:02:14]}
{[%emt 00:04:01]} 13. Bxf6 {[%clk 00:40:50]} {[%emt 00:02:58]} gxf6 {[%clk
00:59:04]} {[%emt 00:03:41]} 14. Qf5 {[%clk 00:36:59]} {[%emt 00:04:21]} Qb6
{[%clk 00:51:18]} {[%emt 00:08:15]} 15. Nd5 {[%clk 00:22:52]} {[%emt 00:14:37]}
Bxd5 {[%clk 00:51:42]} {[%emt 00:00:06]} 16. Qxd5 {[%clk 00:23:19]} {[%emt
00:00:03]} c3 {[%clk 00:51:18]} {[%emt 00:00:55]} 17. b3 {[%clk 00:17:22]}
{[%emt 00:06:25]} Nc6 {[%clk 00:50:19]} {[%emt 00:01:30]} 18. Bd3 {[%clk
00:13:43]} {[%emt 00:04:09]} O-O-O {[%clk 00:48:58]} {[%emt 00:01:52]} 19. Rde1
{[%clk 00:12:10]} {[%emt 00:02:03]} Nb4 {[%clk 00:44:50]} {[%emt 00:04:38]} 20.
Qc4 {[%clk 00:12:31]} {[%emt 00:00:08]} d5 {[%clk 00:30:40]} {[%emt 00:14:40]}
21. Qb5 {[%clk 00:10:55]} {[%emt 00:02:06]} Bd6 {[%clk 00:27:51]} {[%emt
00:03:19]} 22. Kb1 {[%clk 00:06:36]} {[%emt 00:04:49]} Kc7 {[%clk 00:24:45]}
{[%emt 00:03:36]} 23. Re6 {[%clk 00:04:54]} {[%emt 00:02:12]} c4 {[%clk
00:10:11]} {[%emt 00:15:05]} 24. Qxb6+ {[%clk 00:04:34]} {[%emt 00:00:50]} Kxb6
{[%clk 00:10:25]} {[%emt 00:00:16]} 25. Bf5 {[%clk 00:04:17]} {[%emt 00:00:47]}
d3 {[%clk 00:06:16]} {[%emt 00:04:38]} 26. a3 {[%clk 00:02:23]} {[%emt
00:02:25]} Nc2 {[%clk 00:05:20]} {[%emt 00:01:25]} 27. Ka2 {[%clk 00:02:44]}
{[%emt 00:00:10]} Rhe8 {[%clk 00:04:11]} {[%emt 00:01:39]} 28. Rb1 {[%clk
00:01:12]} {[%emt 00:02:01]} Rxe6 {[%clk 00:04:14]} {[%emt 00:00:28]} 29. Bxe6
{[%clk 00:01:36]} {[%emt 00:00:05]} Nxa3 {[%clk 00:04:25]} {[%emt 00:00:20]} 30.
Rh1 {[%clk 00:01:25]} {[%emt 00:00:41]} Bc5 {[%clk 00:02:55]} {[%emt 00:02:00]}
31. Rc1 {[%clk 00:00:34]} {[%emt 00:01:21]} d2 {[%clk 00:02:43]} {[%emt
00:00:42]} 32. Rf1 {[%clk 00:00:43]} {[%emt 00:00:20]} Bb4 {[%clk 00:02:05]}
{[%emt 00:01:09]} 33. bxc4 {[%clk 00:00:33]} {[%emt 00:00:41]} dxc4 {[%clk
00:02:12]} {[%emt 00:00:22]} 0-1

[Event "Elitserien 2019/2020, round 1-3"]
[Site "Uppsala University, Gamla torget, Uppsala, Sweden"]
[Date "2019.10.20"]
[Round "3.3"]
[White "Haldorsen, Benjamin"]
[Black "Linusson, Pelle"]
[Result "1-0"]
[TimeControl "90 minutes for 40 moves + 30 minutes for the rest of the game + 30 seconds per move from move one."]
[WhiteTitle "IM"]
[WhiteFideId "1512633"]
[BlackFideId "1709062"]
[WhiteElo "2440"]
[BlackElo "2231"]

1. e4 {[%clk 01:28:00]} {[%emt 00:03:00]} c5 {[%clk 01:27:45]} {[%emt
00:03:15]} 2. Nc3 {[%clk 01:24:16]} {[%emt 00:04:13]} Nc6 {[%clk 01:27:04]}
{[%emt 00:01:11]} 3. Bb5 {[%clk 01:24:34]} {[%emt 00:00:12]} Nd4 {[%clk
01:21:49]} {[%emt 00:05:46]} 4. Nf3 {[%clk 01:24:47]} {[%emt 00:00:16]} e6
{[%clk 01:17:28]} {[%emt 00:04:51]} 5. O-O {[%clk 01:24:51]} {[%emt 00:00:27]}
Qf6 {[%clk 01:01:30]} {[%emt 00:16:28]} 6. Nxd4 {[%clk 01:21:30]} {[%emt
00:03:50]} cxd4 {[%clk 00:59:48]} {[%emt 00:02:13]} 7. Ne2 {[%clk 01:21:59]}
Bc5 {[%clk 00:59:09]} {[%emt 00:01:08]} 8. d3 {[%clk 01:11:23]} {[%emt
00:11:07]} Ne7 {[%clk 00:56:12]} {[%emt 00:03:27]} 9. Qe1 {[%clk 01:08:49]}
{[%emt 00:03:04]} O-O {[%clk 00:48:25]} {[%emt 00:08:16]} 10. Ba4 {[%clk
00:49:54]} {[%emt 00:19:26]} d5 {[%clk 00:34:40]} {[%emt 00:14:15]} 11. Ng3
{[%clk 00:49:42]} {[%emt 00:00:42]} Qg6 {[%clk 00:31:49]} {[%emt 00:03:21]} 12.
Bf4 {[%clk 00:43:59]} {[%emt 00:06:13]} h5 {[%clk 00:21:48]} {[%emt 00:10:31]}
13. b4 {[%clk 00:42:48]} {[%emt 00:01:40]} Bb6 {[%clk 00:15:45]} {[%emt
00:06:32]} 14. Bd6 {[%clk 00:41:18]} {[%emt 00:02:01]} Bd8 {[%clk 00:14:57]}
{[%emt 00:01:19]} 15. e5 {[%clk 00:40:06]} {[%emt 00:01:42]} a6 {[%clk
00:13:21]} {[%emt 00:02:06]} 16. Ne2 {[%clk 00:37:50]} {[%emt 00:02:46]} b5
{[%clk 00:13:24]} {[%emt 00:00:28]} 17. Bb3 {[%clk 00:38:15]} {[%emt 00:00:05]}
Bd7 {[%clk 00:13:48]} {[%emt 00:00:05]} 18. Nxd4 {[%clk 00:37:41]} {[%emt
00:01:04]} Re8 {[%clk 00:13:36]} {[%emt 00:00:42]} 19. a4 {[%clk 00:36:34]}
{[%emt 00:01:37]} Bb6 {[%clk 00:07:33]} {[%emt 00:06:33]} 20. Bc5 {[%clk
00:35:28]} {[%emt 00:01:36]} Bxc5 {[%clk 00:07:51]} {[%emt 00:00:12]} 21. bxc5
{[%clk 00:35:56]} {[%emt 00:00:02]} Rac8 {[%clk 00:07:53]} {[%emt 00:00:28]} 22.
axb5 {[%clk 00:33:49]} {[%emt 00:02:36]} Bxb5 {[%clk 00:06:43]} {[%emt
00:01:41]} 23. Qc3 {[%clk 00:28:14]} {[%emt 00:06:05]} Qg4 {[%clk 00:04:44]}
{[%emt 00:02:29]} 24. h3 {[%clk 00:27:27]} {[%emt 00:01:17]} Qf4 {[%clk
00:03:14]} {[%emt 00:01:59]} 25. Rfe1 {[%clk 00:27:12]} {[%emt 00:00:45]} Red8
{[%clk 00:02:39]} {[%emt 00:01:06]} 26. g3 {[%clk 00:20:22]} {[%emt 00:07:20]}
Qg5 {[%clk 00:02:35]} {[%emt 00:00:33]} 27. h4 {[%clk 00:19:52]} {[%emt
00:01:01]} Qg4 {[%clk 00:02:48]} {[%emt 00:00:17]} 28. Kh2 {[%clk 00:20:20]}
{[%emt 00:00:02]} Nf5 {[%clk 00:02:35]} {[%emt 00:00:44]} 29. Nxf5 {[%clk
00:20:04]} {[%emt 00:00:45]} Qxf5 {[%clk 00:02:51]} {[%emt 00:00:14]} 30. Qd4
{[%clk 00:20:13]} {[%emt 00:00:21]} Rd7 {[%clk 00:03:00]} {[%emt 00:00:21]} 31.
Rg1 {[%clk 00:14:57]} {[%emt 00:05:45]} Rdc7 {[%clk 00:02:11]} {[%emt
00:01:19]} 32. g4 {[%clk 00:15:06]} {[%emt 00:00:22]} hxg4 {[%clk 00:02:20]}
{[%emt 00:00:21]} 33. Rxg4 {[%clk 00:15:34]} {[%emt 00:00:02]} Kf8 {[%clk
00:01:23]} {[%emt 00:01:27]} 34. Rag1 {[%clk 00:15:20]} {[%emt 00:00:44]} g6
{[%clk 00:01:00]} {[%emt 00:00:54]} 35. Rf4 {[%clk 00:11:36]} {[%emt 00:04:13]}
Qh5 {[%clk 00:00:56]} {[%emt 00:00:35]} 36. Rg5 {[%clk 00:11:01]} {[%emt
00:01:04]} Qh6 {[%clk 00:00:37]} {[%emt 00:00:49]} 37. Qb4 {[%clk 00:09:52]}
{[%emt 00:01:40]} Kg8 {[%clk 00:00:34]} {[%emt 00:00:32]} 38. d4 {[%clk
00:09:33]} {[%emt 00:00:48]} Rb7 {[%clk 00:00:36]} {[%emt 00:00:28]} 39. Kg3
{[%clk 00:05:36]} {[%emt 00:04:28]} Kh7 {[%clk 00:00:40]} {[%emt 00:00:25]} 40.
Rf6 {[%clk 00:03:41]} {[%emt 00:02:26]} Ra8 {[%clk 00:00:49]} {[%emt 00:00:21]}
41. Qa5 {[%clk 00:02:06]} {[%emt 00:02:05]} Be8 {[%clk 00:00:58]} {[%emt
00:00:20]} 42. Kg4 {[%clk 00:25:56]} {[%emt 00:06:41]} Rab8 {[%clk 00:17:56]}
{[%emt 00:13:32]} 43. Qxa6 {[%clk 00:22:56]} {[%emt 00:03:30]} Rb4 {[%clk
00:17:05]} {[%emt 00:01:21]} 44. Rf4 {[%clk 00:21:33]} {[%emt 00:01:53]} Qf8
{[%clk 00:09:13]} {[%emt 00:08:21]} 45. h5 {[%clk 00:16:47]} {[%emt 00:05:16]}
Qe7 {[%clk 00:08:45]} {[%emt 00:00:58]} 46. hxg6+ {[%clk 00:13:25]} {[%emt
00:03:52]} fxg6 {[%clk 00:08:42]} {[%emt 00:00:33]} 47. Qd6 {[%clk 00:10:52]}
{[%emt 00:03:03]} Qg7 {[%clk 00:05:40]} {[%emt 00:03:32]} 48. Kg3 {[%clk
00:10:44]} {[%emt 00:00:39]} 1-0